[Event "44th Chess Olympiad Women 2022"]
[Site "Chennai"]
[Date "2022.08.09"]
[Round "11.25"]
[White "Janzelj, Lara"]
[Black "Gitu, Paula-Alexandra"]
[Result "1-0"]
[ECO "A46"]
[WhiteElo "2215"]
[BlackElo "2109"]
[Annotator "RC"]
[PlyCount "69"]
[EventDate "2022.07.29"]
[EventType "team-tourn"]
[EventCountry "IND"]
[SourceTitle "playchess.com"]
[Source "ChessBase"]
[SourceQuality "1"]
[WhiteTeam "Slovenia"]
[BlackTeam "Moldova"]
[WhiteTeamCountry "SLO"]
[BlackTeamCountry "MDA"]
[TimeControl "40/5400+30:1800+30"]

1. Nf3 {[%emt 0:00:03]} d6 {[%emt 0:00:04]} 2. g3 {[%emt 0:00:37]} Nf6 {[%emt 0:03:18]} 3. Bg2 {[%emt 0:01:06]} c6 {[%emt 0:01:28]} 4. d4 {[%emt 0:01:05]} Bg4 {[%emt 0:01:56]} 5. b3 {[%emt 0:02:54]} Nbd7 {[%emt 0:02:00]} 6. Bb2 {[%emt 0:00:44]} e6 {[%emt 0:01:47]} 7. O-O {[%emt 0:00:37]} d5 {[%emt 0:02:46]} 8. Nbd2 {[%emt 0:01:27]} Bd6 {[%emt 0:02:22]} 9. Ne5 {[%emt 0:00:50]} Bh5 {[%emt 0:05:03]} 10. c4 {[%emt 0:01:26]} O-O {[%emt 0:01:37]} 11. h3 {[%emt 0:04:28]} Qe7 {[%emt 0:14:23]} 12. Qe1 {[%emt 0:07:56]} Bg6 {[%emt 0:13:46]} 13. Nxg6 {[%emt 0:01:50]} hxg6 {[%emt 0:00:03]} 14. e4 {[%emt 0:01:48]} dxe4 {[%emt 0:02:00]} 15. Nxe4 {[%emt 0:00:06]} Nxe4 {[%emt 0:01:12]} 16. Qxe4 {[%emt 0:00:06]} f5 {[%emt 0:07:10]} 17. Qd3 {[%emt 0:03:50]} e5 {[%emt 0:01:48]} 18. c5 {[%emt 0:02:47]} Bc7 {[%emt 0:01:29]} 19. Qc4+ {[%emt 0:02:12]} Qf7 {[%emt 0:08:24]} 20. Qxf7+ {[%emt 0:06:38]} Rxf7 {[%emt 0:01:34]} 21. d5 {[%emt 0:00:16]} e4 {[%emt 0:07:31]} 22. d6 {[%emt 0:04:43]} Bd8 {[%emt 0:03:07]} 23. b4 {[%emt 0:01:35]} a5 {[%emt 0:03:25]} 24. a3 {[%emt 0:00:16]} Bf6 {[%emt 0:00:26]} 25. Bxf6 {[%emt 0:00:56]} gxf6 {[%emt 0:00:48]} 26. f3 {[%emt 0:01:08]} exf3 {[%emt 0:03:22]} 27. Bxf3 {[%emt 0:00:06]} Re8 {[%emt 0:00:41]} 28. b5 {[%emt 0:07:54]} Rc8 {[%emt 0:07:11]} 29. Rfc1 {[%emt 0:03:34]} Rff8 {[%emt 0:02:08]} 30. Rab1 {[%emt 0:01:49]} Ne5 {[%emt 0:00:29]} 31. Bg2 {[%emt 0:01:33]} Rb8 {[%emt 0:00:15]} 32. Rd1 {[%emt 0:01:27]} Rfc8 {[%emt 0:01:06]} 33. d7 {[%emt 0:00:39]} Rd8 {[%emt 0:01:48]} 34. bxc6 {[%emt 0:00:06]} Nxc6 {[%emt 0:00:31]} 35. Bxc6 {[%emt 0:00:06]} 1-0

[Event "44th Chess Olympiad Women 2022"]
[Site "Chennai"]
[Date "2022.08.09"]
[Round "11.25"]
[White "Rozman, Monika"]
[Black "Mihailova, Alina"]
[Result "1/2-1/2"]
[ECO "C54"]
[WhiteElo "2104"]
[BlackElo "1926"]
[Annotator "RC"]
[PlyCount "154"]
[EventDate "2022.07.29"]
[EventType "team-tourn"]
[EventCountry "IND"]
[SourceTitle "playchess.com"]
[Source "ChessBase"]
[SourceQuality "1"]
[WhiteTeam "Slovenia"]
[BlackTeam "Moldova"]
[WhiteTeamCountry "SLO"]
[BlackTeamCountry "MDA"]
[TimeControl "40/5400+30:1800+30"]

1. e4 {[%emt 0:00:03]} e5 {[%emt 0:00:06]} 2. Nf3 {[%emt 0:00:03]} Nc6 {[%emt 0:00:07]} 3. Bc4 {[%emt 0:00:03]} Bc5 {[%emt 0:00:07]} 4. c3 {[%emt 0:00:03]} Nf6 {[%emt 0:00:07]} 5. d3 {[%emt 0:00:04]} d6 {[%emt 0:00:08]} 6. O-O {[%emt 0:00:11]} a5 {[%emt 0:00:20]} 7. Be3 {[%emt 0:03:34]} Ba7 {[%emt 0:11:28]} 8. Nbd2 {[%emt 0:02:43]} O-O {[%emt 0:00:48]} 9. Bxa7 {[%emt 0:02:10]} Rxa7 {[%emt 0:00:39]} 10. Re1 {[%emt 0:03:38]} h6 {[%emt 0:03:41]} 11. h3 {[%emt 0:01:55]} Ne7 {[%emt 0:02:43]} 12. d4 {[%emt 0:00:39]} Ng6 {[%emt 0:00:36]} 13. dxe5 {[%emt 0:05:29]} dxe5 {[%emt 0:01:31]} 14. a4 {[%emt 0:08:31]} Qe7 {[%emt 0:09:05]} 15. Qb3 {[%emt 0:04:56]} Nh5 {[%emt 0:03:04]} 16. Rad1 {[%emt 0:02:11]} Nhf4 {[%emt 0:00:51]} 17. Re3 {[%emt 0:05:22]} Bd7 {[%emt 0:13:05]} 18. Ne1 {[%emt 0:02:25]} Rb8 {[%emt 0:08:50]} 19. Ndf3 {[%emt 0:02:45]} Be8 {[%emt 0:00:55]} 20. Bb5 {[%emt 0:04:17]} c6 {[%emt 0:06:15]} 21. Bf1 {[%emt 0:00:03]} b5 {[%emt 0:02:49]} 22. g3 {[%emt 0:01:20]} Ne6 {[%emt 0:00:18]} 23. axb5 {[%emt 0:00:14]} Nc5 {[%emt 0:07:02]} 24. Qc2 {[%emt 0:02:23]} cxb5 {[%emt 0:00:30]} 25. Nd3 {[%emt 0:02:39]} Bc6 {[%emt 0:01:56]} 26. Nxc5 {[%emt 0:02:20]} Qxc5 {[%emt 0:00:03]} 27. Red3 {[%emt 0:02:48]} Kh7 {[%emt 0:04:59]} 28. Qe2 {[%emt 0:03:01]} b4 {[%emt 0:03:53]} 29. Rd8 {[%emt 0:01:33]} Rxd8 {[%emt 0:03:34]} 30. Rxd8 {[%emt 0:00:02]} Qe7 {[%emt 0:01:17]} 31. Rd1 {[%emt 0:02:17]} bxc3 {[%emt 0:02:09]} 32. bxc3 {[%emt 0:00:16]} a4 {[%emt 0:00:38]} 33. Qc4 {[%emt 0:07:24]} Qb7 {[%emt 0:00:58]} 34. Nd2 {[%emt 0:01:21]} a3 {[%emt 0:02:59]} 35. Ra1 {[%emt 0:00:58]} Ra4 {[%emt 0:04:07]} 36. Qa2 {[%emt 0:04:23]} Bxe4 {[%emt 0:05:46]} 37. Nxe4 {[%emt 0:01:18]} Qxe4 {[%emt 0:00:04]} 38. Qxf7 {[%emt 0:01:21]} Qc6 {[%emt 0:00:36]} 39. Qb3 {[%emt 0:03:10]} Qa8 {[%emt 0:00:51]} 40. Bb5 {[%emt 0:05:56]} Ra7 {[%emt 0:00:53]} 41. Qe6 {[%emt 0:32:13]} Qf8 {[%emt 0:12:49]} 42. Bd3 {[%emt 0:00:00]} Qf6 {[%emt 0:00:34]} 43. Qg4 {[%emt 0:00:00]} Qd6 {[%emt 0:11:42]} 44. Be4 {[%emt 0:00:00]} Ra6 {[%emt 0:01:48]} 45. h4 {[%emt 0:00:00]} Kh8 {[%emt 0:01:56]} 46. Bxg6 {[%emt 0:00:00]} Qxg6 {[%emt 0:00:07]} 47. Qxg6 {[%emt 0:00:00]} Rxg6 {[%emt 0:00:02]} 48. Rxa3 {[%emt 0:00:00]} Rc6 {[%emt 0:01:26]} 49. Kf1 {[%emt 0:00:00]} Kg8 {[%emt 0:01:07]} 50. Ke2 {[%emt 0:00:00]} Kf7 {[%emt 0:00:05]} 51. Kd3 {[%emt 0:00:00]} Kf6 {[%emt 0:00:58]} 52. c4 {[%emt 0:00:00]} g5 {[%emt 0:00:43]} 53. hxg5+ {[%emt 0:00:00]} hxg5 {[%emt 0:00:03]} 54. Rc3 {[%emt 0:00:00]} Rc5 {[%emt 0:03:38]} 55. Rc2 {[%emt 0:03:33]} Kf5 {[%emt 0:00:33]} 56. Kc3 {[%emt 0:00:37]} Ke4 {[%emt 0:00:33]} 57. Kb4 {[%emt 0:00:50]} Rc8 {[%emt 0:00:02]} 58. c5 {[%emt 0:02:32]} Kd3 {[%emt 0:01:03]} 59. Rc3+ {[%emt 0:00:47]} Ke2 {[%emt 0:00:19]} 60. f3 {[%emt 0:01:05]} Kf2 {[%emt 0:00:40]} 61. g4 {[%emt 0:00:20]} Kg3 {[%emt 0:00:21]} 62. c6 {[%emt 0:02:56]} e4 {[%emt 0:00:14]} 63. fxe4+ {[%emt 0:00:15]} Kxg4 {[%emt 0:00:02]} 64. Kc5 {[%emt 0:02:38]} Kf4 {[%emt 0:00:09]} 65. Kd6 {[%emt 0:01:20]} Kxe4 {[%emt 0:00:31]} 66. Kd7 {[%emt 0:00:22]} Rg8 {[%emt 0:01:46]} 67. c7 {[%emt 0:00:54]} g4 {[%emt 0:00:17]} 68. Ke6 {[%emt 0:00:31]} Kf4 {[%emt 0:00:37]} 69. c8=Q {[%emt 0:02:09]} Rxc8 {[%emt 0:00:04]} 70. Rxc8 {[%emt 0:00:03]} g3 {[%emt 0:00:19]} 71. Rc2 {[%emt 0:06:11]} Kf3 {[%emt 0:00:42]} 72. Kf5 {[%emt 0:00:34]} g2 {[%emt 0:00:08]} 73. Rc3+ {[%emt 0:00:42]} Kf2 {[%emt 0:00:27]} 74. Rc2+ {[%emt 0:00:26]} Kf1 {[%emt 0:00:30]} 75. Rc1+ {[%emt 0:00:04]} Kf2 {[%emt 0:00:04]} 76. Kf4 {[%emt 0:00:02]} g1=Q {[%emt 0:00:12]} 77. Rxg1 {[%emt 0:00:04]} Kxg1 {[%emt 0:00:03]} 1/2-1/2

[Event "44th Chess Olympiad Women 2022"]
[Site "Chennai"]
[Date "2022.08.09"]
[Round "11.25"]
[White "Verbin, Valentina"]
[Black "Unuk, Laura"]
[Result "0-1"]
[ECO "C63"]
[WhiteElo "2069"]
[BlackElo "2340"]
[Annotator "RC"]
[PlyCount "70"]
[EventDate "2022.07.29"]
[EventType "team-tourn"]
[EventCountry "IND"]
[SourceTitle "playchess.com"]
[Source "ChessBase"]
[SourceQuality "1"]
[WhiteTeam "Moldova"]
[BlackTeam "Slovenia"]
[WhiteTeamCountry "MDA"]
[BlackTeamCountry "SLO"]
[TimeControl "40/5400+30:1800+30"]

1. e4 {[%emt 0:00:06]} e5 {[%emt 0:00:32]} 2. Nf3 {[%emt 0:00:26]} Nc6 {[%emt 0:00:06]} 3. Bb5 {[%emt 0:00:36]} f5 {[%emt 0:00:29]} 4. d3 {[%emt 0:06:40]} fxe4 {[%emt 0:00:58]} 5. dxe4 {[%emt 0:00:07]} Nf6 {[%emt 0:00:05]} 6. Qd3 {[%emt 0:02:58]} d6 {[%emt 0:17:17]} 7. a3 {[%emt 0:14:03]} Bd7 {[%emt 0:07:50]} 8. Nc3 {[%emt 0:02:59]} Qe7 {[%emt 0:01:42]} 9. Bg5 {[%emt 0:01:10]} Qf7 {[%emt 0:02:17]} 10. O-O-O {[%emt 0:07:34]} Be7 {[%emt 0:06:47]} 11. h3 {[%emt 0:06:46]} O-O {[%emt 0:05:54]} 12. Be3 {[%emt 0:06:08]} Kh8 {[%emt 0:02:43]} 13. Bc4 {[%emt 0:19:44]} Qe8 {[%emt 0:00:49]} 14. Nh4 {[%emt 0:05:07]} a6 {[%emt 0:04:08]} 15. Bb3 {[%emt 0:11:30]} b5 {[%emt 0:01:43]} 16. g3 {[%emt 0:02:47]} Na5 {[%emt 0:07:03]} 17. Ba2 {[%emt 0:01:12]} c5 {[%emt 0:00:19]} 18. Bd5 {[%emt 0:00:46]} Rb8 {[%emt 0:03:35]} 19. b4 {[%emt 0:00:36]} Nc4 {[%emt 0:07:17]} 20. Bxc4 {[%emt 0:05:00]} bxc4 {[%emt 0:00:05]} 21. Qxc4 {[%emt 0:00:07]} cxb4 {[%emt 0:01:08]} 22. axb4 {[%emt 0:00:10]} d5 {[%emt 0:01:52]} 23. Nxd5 {[%emt 0:01:30]} Nxd5 {[%emt 0:00:15]} 24. exd5 {[%emt 0:03:31]} Bxb4 {[%emt 0:00:25]} 25. c3 {[%emt 0:00:33]} Ba3+ {[%emt 0:00:47]} 26. Kd2 {[%emt 0:00:09]} Rb2+ {[%emt 0:01:45]} 27. Ke1 {[%emt 0:00:04]} Bb5 {[%emt 0:00:04]} 28. Qg4 {[%emt 0:00:42]} Re2+ {[%emt 0:02:56]} 29. Qxe2 {[%emt 0:00:04]} Bxe2 {[%emt 0:00:04]} 30. Kxe2 {[%emt 0:00:07]} Qb5+ {[%emt 0:00:12]} 31. Ke1 {[%emt 0:01:12]} Bb2 {[%emt 0:00:20]} 32. Bd2 {[%emt 0:01:23]} Qxd5 {[%emt 0:00:15]} 33. Rg1 {[%emt 0:00:37]} Rd8 {[%emt 0:01:27]} 34. Ke2 {[%emt 0:00:32]} Qd3+ {[%emt 0:00:07]} 35. Ke1 {[%emt 0:00:20]} Bxc3 {[%emt 0:00:10]} 0-1

[Event "44th Chess Olympiad Women 2022"]
[Site "Chennai"]
[Date "2022.08.09"]
[Round "11.25"]
[White "Petricenco, Ana"]
[Black "Vidic, Teja"]
[Result "1-0"]
[ECO "B10"]
[WhiteElo "1912"]
[BlackElo "2099"]
[Annotator "NA RC"]
[PlyCount "95"]
[EventDate "2022.07.29"]
[EventType "team-tourn"]
[EventCountry "IND"]
[SourceTitle "playchess.com"]
[Source "ChessBase"]
[SourceQuality "1"]
[WhiteTeam "Moldova"]
[BlackTeam "Slovenia"]
[WhiteTeamCountry "MDA"]
[BlackTeamCountry "SLO"]
[TimeControl "40/5400+30:1800+30"]

1. e4 {[%emt 0:00:04]} c6 {[%emt 0:00:04]} 2. d3 {[%emt 0:00:09]} d5 {[%emt 0:00:04]} 3. Nd2 {[%emt 0:00:06]} e5 {[%emt 0:00:07]} 4. Ngf3 {[%emt 0:00:06]} Bd6 {[%emt 0:00:14]} 5. g3 {[%emt 0:00:43]} Nf6 {[%emt 0:00:34]} 6. Bg2 {[%emt 0:00:10]} O-O {[%emt 0:00:21]} 7. O-O {[%emt 0:00:51]} Re8 {[%emt 0:00:19]} 8. Re1 {[%emt 0:00:35]} Nbd7 {[%emt 0:00:06]} 9. b3 {[%emt 0:05:37]} a5 {[%emt 0:00:43]} 10. a3 {[%emt 0:01:45]} Qc7 {[%emt 0:09:55]} 11. Bb2 {[%emt 0:00:33]} a4 {[%emt 0:00:07]} 12. b4 {[%emt 0:02:30]} d4 {[%emt 0:06:10]} 13. c3 {[%emt 0:06:27]} dxc3 {[%emt 0:01:22]} 14. Bxc3 {[%emt 0:00:05]} Nf8 {[%emt 0:06:26]} 15. d4 {[%emt 0:08:16]} Ng6 {[%emt 0:04:50]} 16. Nc4 {[%emt 0:08:00]} exd4 {[%emt 0:10:37]} 17. Nxd4 {[%emt 0:04:49]} Bf8 {[%emt 0:05:17]} 18. Nf5 {[%emt 0:09:35]} Be6 {[%emt 0:05:20]} 19. Nce3 {[%emt 0:05:38]} Bb3 {[%emt 0:08:33]} 20. Qb1 {[%emt 0:07:14]} Ne5 {[%emt 0:07:45]} 21. Nd4 {[%emt 0:02:17]} Be6 {[%emt 0:00:31]} 22. Nxe6 {[%emt 0:00:44]} Rxe6 {[%emt 0:00:08]} 23. h3 {[%emt 0:02:38]} Qb6 {[%emt 0:04:24]} 24. Bxe5 {[%emt 0:06:34]} Rxe5 {[%emt 0:00:20]} 25. Nc4 {[%emt 0:00:17]} Qc7 {[%emt 0:00:33]} 26. Nxe5 {[%emt 0:00:06]} Qxe5 {[%emt 0:00:03]} 27. Qc2 {[%emt 0:00:33]} h5 {[%emt 0:00:15]} 28. Rad1 {[%emt 0:01:29]} h4 {[%emt 0:02:39]} 29. g4 {[%emt 0:03:19]} c5 {[%emt 0:04:25]} 30. bxc5 {[%emt 0:02:34]} Bxc5 {[%emt 0:00:07]} 31. Rd3 {[%emt 0:00:23]} b6 {[%emt 0:01:02]} 32. Red1 {[%emt 0:02:01]} g6 {[%emt 0:00:15]} 33. Rf1 {[%emt 0:04:50]} Nh7 {[%emt 0:14:38]} 34. Kh1 {[%emt 0:01:30]} Qe7 {[%emt 0:01:22]} 35. f4 {[%emt 0:02:09]} Bxa3 {[%emt 0:02:21]} 36. e5 {[%emt 0:01:01]} Ra5 {[%emt 0:00:51]} 37. f5 {[%emt 0:01:35]} Rxe5 {[%emt 0:01:37]} 38. fxg6 {[%emt 0:00:31]} Nf6 {[%emt 0:02:03]} 39. gxf7+ {[%emt 0:00:28]} Kg7 {[%emt 0:00:08]} 40. Rdf3 {[%emt 0:05:41]} Re6 {[%emt 0:03:22]} 41. Qc3 {[%emt 0:11:48]} Bb4 {[%emt 0:00:53]} 42. Qa1 {[%emt 0:00:44]} Kg6 {[%emt 0:07:31]} 43. Qb1+ {[%emt 0:02:57]} Kxf7 {[%emt 0:00:56]} 44. g5 {[%emt 0:01:06]} Re1 {[%emt 0:00:05]} 45. Rxe1 {[%emt 0:00:56]} Bxe1 {[%emt 0:00:05]} 46. Rxf6+ {[%emt 0:00:41]} Ke8 {[%emt 0:00:05]} 47. Qb5+ {[%emt 0:00:37]} Kd8 {[%emt 0:00:04]} 48. Qxb6+ {[%emt 0:00:13]} 1-0

[Event "44th Chess Olympiad Women 2022"]
[Site "Chennai"]
[Date "2022.08.09"]
[Round "11.26"]
[White "Hakimifard, Ghazal"]
[Black "Johannsdottir, Johanna Bjorg"]
[Result "1-0"]
[ECO "B06"]
[WhiteElo "2296"]
[BlackElo "1976"]
[Annotator "RC"]
[PlyCount "35"]
[EventDate "2022.07.29"]
[EventType "team-tourn"]
[EventCountry "IND"]
[SourceTitle "playchess.com"]
[Source "ChessBase"]
[SourceQuality "1"]
[WhiteTeam "Switzerland"]
[BlackTeam "Iceland"]
[WhiteTeamCountry "SUI"]
[BlackTeamCountry "ISL"]
[TimeControl "40/5400+30:1800+30"]

1. e4 {[%emt 0:00:04]} g6 {[%emt 0:00:29]} 2. d4 {[%emt 0:00:04]} Bg7 {[%emt 0:00:00]} 3. Nc3 {[%emt 0:00:14]} d6 {[%emt 0:00:02]} 4. Be3 {[%emt 0:01:23]} a6 {[%emt 0:00:06]} 5. Qd2 {[%emt 0:06:18]} b5 {[%emt 0:00:14]} 6. h4 {[%emt 0:01:06]} h5 {[%emt 0:01:49]} 7. Nh3 {[%emt 0:01:40]} Bb7 {[%emt 0:00:19]} 8. Ng5 {[%emt 0:02:22]} Nd7 {[%emt 0:00:24]} 9. a4 {[%emt 0:10:01]} b4 {[%emt 0:00:47]} 10. Nd5 {[%emt 0:04:41]} c5 {[%emt 0:09:28]} 11. Bc4 {[%emt 0:05:19]} e6 {[%emt 0:10:25]} 12. Nf4 {[%emt 0:02:09]} Rc8 {[%emt 0:03:11]} 13. O-O {[%emt 0:12:41]} Ngf6 {[%emt 0:06:11]} 14. dxc5 {[%emt 0:09:04]} dxc5 {[%emt 0:00:46]} 15. Rad1 {[%emt 0:11:39]} Ng4 {[%emt 0:15:34]} 16. Nxf7 {[%emt 0:01:15]} Qxh4 {[%emt 0:08:02]} 17. Qxd7+ {[%emt 0:00:18]} Kf8 {[%emt 0:00:03]} 18. Nxg6+ {[%emt 0:00:05]} 1-0

[Event "44th Chess Olympiad Women 2022"]
[Site "Chennai"]
[Date "2022.08.09"]
[Round "11.26"]
[White "De Seroux, Camille"]
[Black "Acevedo Mendez, Lisseth"]
[Result "1-0"]
[ECO "C29"]
[WhiteElo "2106"]
[BlackElo "1784"]
[Annotator "NA RC"]
[PlyCount "49"]
[EventDate "2022.07.29"]
[EventType "team-tourn"]
[EventCountry "IND"]
[SourceTitle "playchess.com"]
[Source "ChessBase"]
[SourceQuality "1"]
[WhiteTeam "Switzerland"]
[BlackTeam "Iceland"]
[WhiteTeamCountry "SUI"]
[BlackTeamCountry "ISL"]
[TimeControl "40/5400+30:1800+30"]

1. e4 {[%emt 0:00:04]} e5 {[%emt 0:00:24]} 2. Nc3 {[%emt 0:00:06]} Nf6 {[%emt 0:00:40]} 3. f4 {[%emt 0:00:21]} d5 {[%emt 0:00:06]} 4. fxe5 {[%emt 0:00:08]} Nxe4 {[%emt 0:00:06]} 5. Nf3 {[%emt 0:00:11]} Nxc3 {[%emt 0:00:30]} 6. bxc3 {[%emt 0:09:20]} c5 {[%emt 0:02:43]} 7. d4 {[%emt 0:02:47]} c4 {[%emt 0:00:18]} 8. Be2 {[%emt 0:04:20]} Be7 {[%emt 0:00:16]} 9. O-O {[%emt 0:00:34]} O-O {[%emt 0:00:47]} 10. Qe1 {[%emt 0:04:08]} Qa5 {[%emt 0:05:57]} 11. Bd2 {[%emt 0:12:49]} Qa4 {[%emt 0:00:20]} 12. Bd1 {[%emt 0:04:39]} a5 {[%emt 0:13:51]} 13. Qg3 {[%emt 0:04:39]} Ra6 {[%emt 0:03:14]} 14. Ng5 {[%emt 0:05:23]} Be6 {[%emt 0:36:14]} 15. Rf2 {[%emt 0:10:43]} Rb6 {[%emt 0:06:31]} 16. Nxe6 {[%emt 0:07:19]} Rxe6 {[%emt 0:00:36]} 17. Bh5 {[%emt 0:01:58]} Qb5 {[%emt 0:14:47]} 18. Raf1 {[%emt 0:01:30]} f5 {[%emt 0:07:45]} 19. Rxf5 {[%emt 0:07:11]} Rxf5 {[%emt 0:01:24]} 20. Rxf5 {[%emt 0:00:09]} g6 {[%emt 0:00:36]} 21. Rf1 {[%emt 0:02:08]} Qe8 {[%emt 0:02:21]} 22. Bg4 {[%emt 0:01:24]} Rb6 {[%emt 0:00:13]} 23. Qf3 {[%emt 0:00:32]} Qd8 {[%emt 0:01:15]} 24. Qf7+ {[%emt 0:00:45]} Kh8 {[%emt 0:00:03]} 25. Bh6 {[%emt 0:00:18]} 1-0

[Event "44th Chess Olympiad Women 2022"]
[Site "Chennai"]
[Date "2022.08.09"]
[Round "11.26"]
[White "Ptacnikova, Lenka"]
[Black "Georgescu, Lena"]
[Result "1/2-1/2"]
[ECO "A20"]
[WhiteElo "2066"]
[BlackElo "2279"]
[Annotator "RC"]
[PlyCount "120"]
[EventDate "2022.07.29"]
[EventType "team-tourn"]
[EventCountry "IND"]
[SourceTitle "playchess.com"]
[Source "ChessBase"]
[SourceQuality "1"]
[WhiteTeam "Iceland"]
[BlackTeam "Switzerland"]
[WhiteTeamCountry "ISL"]
[BlackTeamCountry "SUI"]
[TimeControl "40/5400+30:1800+30"]

1. c4 {[%emt 0:00:01]} e5 {[%emt 0:01:14]} 2. g3 {[%emt 0:00:36]} c6 {[%emt 0:00:04]} 3. Nf3 {[%emt 0:02:29]} e4 {[%emt 0:00:43]} 4. Nd4 {[%emt 0:00:11]} d5 {[%emt 0:00:06]} 5. cxd5 {[%emt 0:00:13]} Qxd5 {[%emt 0:00:05]} 6. e3 {[%emt 0:01:21]} Nf6 {[%emt 0:03:38]} 7. Nc3 {[%emt 0:01:32]} Qe5 {[%emt 0:00:17]} 8. d3 {[%emt 0:11:15]} exd3 {[%emt 0:06:48]} 9. f4 {[%emt 0:03:22]} Qc7 {[%emt 0:05:27]} 10. Qxd3 {[%emt 0:02:48]} Bc5 {[%emt 0:05:37]} 11. Ne4 {[%emt 0:20:43]} Bb4+ {[%emt 0:04:33]} 12. Bd2 {[%emt 0:00:16]} Bxd2+ {[%emt 0:05:02]} 13. Nxd2 {[%emt 0:00:09]} O-O {[%emt 0:01:11]} 14. Bg2 {[%emt 0:05:01]} Na6 {[%emt 0:03:29]} 15. O-O {[%emt 0:02:58]} Rd8 {[%emt 0:06:05]} 16. Qc3 {[%emt 0:05:12]} Nd5 {[%emt 0:06:19]} 17. Bxd5 {[%emt 0:07:46]} Rxd5 {[%emt 0:02:58]} 18. e4 {[%emt 0:03:46]} Rd8 {[%emt 0:00:52]} 19. N2f3 {[%emt 0:11:22]} c5 {[%emt 0:05:18]} 20. Nc2 {[%emt 0:02:49]} b6 {[%emt 0:04:22]} 21. Rae1 {[%emt 0:04:49]} Qe7 {[%emt 0:07:05]} 22. h4 {[%emt 0:00:39]} Nc7 {[%emt 0:01:04]} 23. Rf2 {[%emt 0:03:20]} Bb7 {[%emt 0:03:16]} 24. h5 {[%emt 0:03:57]} h6 {[%emt 0:02:52]} 25. Nh4 {[%emt 0:00:56]} Nb5 {[%emt 0:02:24]} 26. Qf3 {[%emt 0:02:14]} Nd6 {[%emt 0:02:38]} 27. Qg4 {[%emt 0:01:58]} Bxe4 {[%emt 0:02:32]} 28. f5 {[%emt 0:00:07]} Qg5 {[%emt 0:01:56]} 29. Rxe4 {[%emt 0:00:28]} Nxe4 {[%emt 0:00:06]} 30. Qxe4 {[%emt 0:00:05]} Qxg3+ {[%emt 0:03:56]} 31. Ng2 {[%emt 0:00:04]} Re8 {[%emt 0:01:48]} 32. Qc4 {[%emt 0:00:52]} Rad8 {[%emt 0:01:06]} 33. Qf4 {[%emt 0:02:47]} Rd1+ {[%emt 0:00:16]} 34. Rf1 {[%emt 0:00:05]} Qxf4 {[%emt 0:08:31]} 35. Nxf4 {[%emt 0:00:05]} Rd2 {[%emt 0:01:56]} 36. Ne1 {[%emt 0:01:16]} Rxb2 {[%emt 0:00:39]} 37. f6 {[%emt 0:00:26]} Rxa2 {[%emt 0:01:05]} 38. Nf3 {[%emt 0:00:36]} Re3 {[%emt 0:01:06]} 39. Nd5 {[%emt 0:00:43]} Ree2 {[%emt 0:00:24]} 40. Nh4 {[%emt 0:00:34]} gxf6 {[%emt 0:01:03]} 41. Nxf6+ {[%emt 0:00:56]} Kg7 {[%emt 0:03:47]} 42. Ng4 {[%emt 0:00:37]} c4 {[%emt 0:05:36]} 43. Nf5+ {[%emt 0:00:50]} Kf8 {[%emt 0:02:13]} 44. Nfxh6 {[%emt 0:05:45]} c3 {[%emt 0:06:00]} 45. Nxf7 {[%emt 0:00:20]} Rg2+ {[%emt 0:06:46]} 46. Kh1 {[%emt 0:00:04]} Rxg4 {[%emt 0:07:05]} 47. Ne5+ {[%emt 0:00:27]} Kg8 {[%emt 0:00:40]} 48. Nxg4 {[%emt 0:00:27]} c2 {[%emt 0:00:43]} 49. Rc1 {[%emt 0:14:28]} Ra4 {[%emt 0:01:12]} 50. Ne3 {[%emt 0:01:16]} Rh4+ {[%emt 0:00:23]} 51. Kg2 {[%emt 0:00:13]} Rxh5 {[%emt 0:00:12]} 52. Rxc2 {[%emt 0:00:09]} Rc5 {[%emt 0:01:09]} 53. Rxc5 {[%emt 0:01:20]} bxc5 {[%emt 0:00:04]} 54. Kf3 {[%emt 0:00:19]} Kf7 {[%emt 0:00:02]} 55. Ke4 {[%emt 0:00:11]} Ke6 {[%emt 0:00:03]} 56. Nc4 {[%emt 0:00:48]} a6 {[%emt 0:00:30]} 57. Na5 {[%emt 0:00:38]} Kd6 {[%emt 0:00:06]} 58. Kd3 {[%emt 0:02:40]} Kd5 {[%emt 0:00:51]} 59. Kc3 {[%emt 0:00:07]} Ke5 {[%emt 0:00:31]} 60. Kc4 {[%emt 0:00:11]} Kd6 {[%emt 0:00:10]} 1/2-1/2

[Event "44th Chess Olympiad Women 2022"]
[Site "Chennai"]
[Date "2022.08.09"]
[Round "11.26"]
[White "Thorsteinsdottir, Hallgerdur"]
[Black "Stoeri, Laura"]
[Result "1-0"]
[ECO "C58"]
[WhiteElo "1934"]
[BlackElo "2084"]
[Annotator "NA RC"]
[PlyCount "93"]
[EventDate "2022.07.29"]
[EventType "team-tourn"]
[EventCountry "IND"]
[SourceTitle "playchess.com"]
[Source "ChessBase"]
[SourceQuality "1"]
[WhiteTeam "Iceland"]
[BlackTeam "Switzerland"]
[WhiteTeamCountry "ISL"]
[BlackTeamCountry "SUI"]
[TimeControl "40/5400+30:1800+30"]

1. e4 {[%emt 0:00:06]} e5 {[%emt 0:00:03]} 2. Nf3 {[%emt 0:00:10]} Nc6 {[%emt 0:00:04]} 3. Bc4 {[%emt 0:00:32]} Nf6 {[%emt 0:00:04]} 4. Ng5 {[%emt 0:00:19]} d5 {[%emt 0:00:16]} 5. exd5 {[%emt 0:00:18]} Na5 {[%emt 0:00:03]} 6. Bb5+ {[%emt 0:00:22]} c6 {[%emt 0:00:04]} 7. dxc6 {[%emt 0:00:20]} bxc6 {[%emt 0:00:11]} 8. Qf3 {[%emt 0:00:22]} Rb8 {[%emt 0:03:30]} 9. Be2 {[%emt 0:00:51]} Be7 {[%emt 0:01:36]} 10. Nc3 {[%emt 0:05:30]} O-O {[%emt 0:00:25]} 11. d3 {[%emt 0:00:49]} Nd5 {[%emt 0:05:02]} 12. Nge4 {[%emt 0:01:32]} Nb4 {[%emt 0:16:00]} 13. Bd1 {[%emt 0:07:30]} f5 {[%emt 0:00:12]} 14. Ng3 {[%emt 0:03:49]} c5 {[%emt 0:08:13]} 15. O-O {[%emt 0:12:06]} Nac6 {[%emt 0:01:21]} 16. Qe2 {[%emt 0:11:03]} Nd4 {[%emt 0:04:24]} 17. Qd2 {[%emt 0:05:26]} f4 {[%emt 0:07:08]} 18. Nge2 {[%emt 0:18:12]} Nf5 {[%emt 0:16:55]} 19. f3 {[%emt 0:10:13]} c4 {[%emt 0:03:41]} 20. a3 {[%emt 0:02:24]} Qb6+ {[%emt 0:08:24]} 21. Kh1 {[%emt 0:01:22]} Ne3 {[%emt 0:03:04]} 22. Rg1 {[%emt 0:00:36]} cxd3 {[%emt 0:02:36]} 23. axb4 {[%emt 0:04:56]} dxe2 {[%emt 0:00:04]} 24. Qxe2 {[%emt 0:00:14]} Nf5 {[%emt 0:01:26]} 25. Re1 {[%emt 0:01:07]} Rf6 {[%emt 0:07:45]} 26. Ne4 {[%emt 0:02:25]} Rh6 {[%emt 0:00:02]} 27. c3 {[%emt 0:00:58]} Bb7 {[%emt 0:02:18]} 28. g4 {[%emt 0:04:00]} Nh4 {[%emt 0:05:27]} 29. Bb3+ {[%emt 0:00:11]} Kh8 {[%emt 0:00:02]} 30. Ra5 {[%emt 0:00:14]} Ng6 {[%emt 0:02:18]} 31. Bd5 {[%emt 0:00:47]} Bh4 {[%emt 0:00:17]} 32. Rd1 {[%emt 0:00:45]} Bxd5 {[%emt 0:02:40]} 33. Raxd5 {[%emt 0:00:06]} Rd8 {[%emt 0:00:15]} 34. Rxd8+ {[%emt 0:00:34]} Bxd8 {[%emt 0:00:02]} 35. Nd6 {[%emt 0:00:45]} Qc7 {[%emt 0:00:56]} 36. Nf7+ {[%emt 0:01:04]} Qxf7 {[%emt 0:00:07]} 37. Rxd8+ {[%emt 0:00:05]} Nf8 {[%emt 0:00:02]} 38. Qxe5 {[%emt 0:00:48]} Kg8 {[%emt 0:00:06]} 39. Bxf4 {[%emt 0:02:23]} Re6 {[%emt 0:01:07]} 40. Qd5 {[%emt 0:01:33]} h6 {[%emt 0:01:39]} 41. c4 {[%emt 0:04:05]} Kh7 {[%emt 0:01:01]} 42. Bg3 {[%emt 0:06:23]} Ng6 {[%emt 0:00:52]} 43. c5 {[%emt 0:01:27]} Qe7 {[%emt 0:00:33]} 44. Kg2 {[%emt 0:07:16]} Re2+ {[%emt 0:00:57]} 45. Kh3 {[%emt 0:00:34]} Re6 {[%emt 0:10:45]} 46. c6 {[%emt 0:00:39]} Rxc6 {[%emt 0:01:41]} 47. Qg8# {[%emt 0:00:10]} 1-0